bitfinex-derivatives/quotes_SOLF0:USTF0_20250923
["timestamp","ask_amount","ask_price","bid_price","bid_amount"]
[1758600221912,2.2823829,217.14,216.98,2.2823829]
[1758600221913,13.01893499,217.12,216.99,7.01]
[1758600222099,1.15109832,217.11,216.99,7.01]
[1758600222301,66.6982829,217.14,216.99,7.01]
[1758600222496,64.4159,217.14,216.99,7.01]
[1758600222911,4.1413,217.13,216.99,7.01]
[1758600223707,4.1413,217.13,216.99,69.01]
[1758600224112,11.7513,217.13,216.99,69.01]
[1758600224813,7.61,217.1,216.99,7.01]
[1758600225207,4.1419,217.09,216.95,99.18]
[1758600225404,4.1419,217.09,216.96,7.01]
[1758600225904,7.61,217.08,216.96,7.01]
[1758600231014,7.61,217.08,216.97,4.1442]
[1758600232214,7.61,217.12,216.99,4.1437]
[1758600232409,7.61,217.12,217.0,7.01]
[1758600233212,7.61,217.12,217.01,4.1434]
[1758600234822,7.61,217.12,217.02,7.01]
[1758600235123,2.273,217.12,217.02,7.01]
[1758600235419,2.273,217.12,217.03,4.143]
[1758600236218,4.1403,217.18,217.04,7.01]
[1758600236720,3.84440924,217.17,217.04,7.01]
[1758600236920,3.84440924,217.16,217.04,7.01]
[1758600237119,4.1403,217.18,217.04,7.01]
[1758600237322,2.41374342,217.17,217.04,7.01]
[1758600237521,4.1403,217.18,217.04,7.01]
[1758600238220,17.8226165,217.18,217.04,7.01]
[1758600238420,3.35608376,217.17,217.04,7.01]
[1758600238621,4.1403,217.18,217.04,7.01]
[1758600238920,3.35614498,217.17,217.04,7.01]
[1758600239122,220.72145164,217.2,217.04,7.01]
[1758600239322,3.35614498,217.19,217.04,7.01]
[1758600239522,4.1406,217.16,217.04,7.01]
[1758600239725,3.35614498,217.15,217.04,7.01]
[1758600240422,0.02,217.15,217.04,7.01]
[1758600241619,220.72145164,217.2,217.04,7.01]
[1758600241819,3.40023407,217.19,217.04,7.01]
[1758600242016,3.40023407,217.18,217.04,7.01]
[1758600242221,3.40023407,217.17,217.04,7.01]
[1758600242425,3.40023407,217.16,217.04,7.01]
[1758600242630,3.40023407,217.15,216.96,7.34]
[1758600242826,3.40023407,217.14,216.96,7.34]
[1758600243021,3.40023407,217.13,216.96,7.34]
[1758600243222,3.40023407,217.12,216.96,7.34]
[1758600243424,4.141,217.14,216.99,7.34]
[1758600243617,3.40043726,217.13,216.99,7.34]
[1758600243829,3.40043726,217.12,216.99,7.34]
[1758600244018,4.141,217.14,216.99,7.34]
[1758600244222,3.40043726,217.13,216.99,7.34]
[1758600244425,7.54183726,217.12,216.99,7.34]
[1758600244727,2.29195215,217.11,216.99,7.34]
[1758600245728,2.29195215,217.1,216.99,7.34]
[1758600245924,3.12635215,217.12,216.99,7.34]
[1758600246227,2.29195215,217.11,216.99,7.34]
[1758600247717,2.29195215,217.08,216.96,7.34]
[1758600249332,3.83070731,217.07,216.96,7.34]
[1758600249527,6.43415215,217.08,216.96,7.34]
[1758600249726,3.83070648,217.07,216.96,7.34]
[1758600249931,6.43415215,217.08,216.96,7.34]
[1758600250134,3.83070874,217.07,216.96,7.34]
[1758600250330,3.83070874,217.06,216.96,7.34]
[1758600250533,6.43415215,217.08,216.96,7.34]
[1758600250828,3.8325811,217.07,216.96,7.34]
[1758600251025,6.43415215,217.08,216.96,7.34]
[1758600251026,3.8325811,217.06,216.96,7.34]
[1758600251231,6.43415215,217.08,216.96,7.34]
[1758600251428,3.83495761,217.07,216.96,7.34]
[1758600251730,3.83495761,217.06,216.96,7.34]
[1758600251926,3.83495761,217.05,216.96,7.34]
[1758600252127,6.43415215,217.08,216.96,7.34]
[1758600252328,3.83733311,217.07,216.96,7.34]
[1758600252528,3.83733311,217.06,216.96,7.34]
[1758600252723,3.83733311,217.05,216.96,7.34]
[1758600252935,6.12928526,217.05,216.94,50.22]
[1758600253138,3.83733311,217.04,216.94,50.22]
[1758600253331,2.29195215,217.02,216.92,7.34]
[1758600253528,3.83733311,217.01,216.92,7.34]
[1758600254635,3.83733311,217.0,216.83,7.34]
[1758600254839,64.4402,217.06,216.76,64.5264]
[1758600254840,3.83733311,216.99,216.86,7.34]
[1758600255038,3.83733311,216.98,216.86,7.34]
[1758600255337,3.83733311,216.97,216.86,7.34]
[1758600255533,3.83733311,216.96,216.86,7.34]
[1758600255727,3.83733311,216.95,216.86,7.34]
[1758600255926,3.83733311,216.94,216.86,7.34]
[1758600256133,3.83733311,216.93,216.86,7.34]
[1758600256331,3.83733311,216.92,216.86,7.34]
[1758600256533,5.16802973,217.0,216.87,4.1461]
[1758600256734,7.26051979,216.99,216.86,7.34]
[1758600256936,7.26051979,216.98,216.86,7.34]
[1758600257128,7.26051979,216.97,216.86,7.34]
[1758600257330,7.26051979,216.96,216.86,7.34]
[1758600257527,3.40892545,216.95,216.86,7.34]
[1758600257732,7.26051979,216.94,216.86,7.34]
[1758600257936,5.16802973,216.98,216.86,7.34]
[1758600257937,7.26051979,216.93,216.86,7.34]
[1758600258132,7.26051979,216.92,216.86,7.34]
[1758600258333,7.26051979,216.91,216.86,7.34]
[1758600258544,7.26051979,216.9,216.86,7.25]
[1758600258739,5.16802973,216.98,216.86,7.25]
[1758600258935,7.27230059,216.97,216.86,7.25]
[1758600259138,7.27230059,216.96,216.86,7.25]
[1758600259338,7.27230059,216.95,216.86,7.25]
[1758600259537,7.27230059,216.94,216.86,7.25]
[1758600259742,7.27230059,216.93,216.86,7.25]
[1758600260038,7.27230059,216.92,216.86,7.25]
[1758600260240,7.27230059,216.91,216.86,7.25]
[1758600260438,7.27230059,216.9,216.86,7.25]
[1758600260636,7.27230059,216.89,216.85,4.1464]
[1758600260839,7.27230059,216.88,216.85,4.1464]
[1758600261037,3.85785243,216.87,216.86,7.25]
[1758600262340,7.284633,216.87,216.86,7.25]
[1758600263446,7.284633,216.87,216.86,7.71]
[1758600264145,3.42678057,216.87,216.86,7.71]
[1758600265647,3.42678057,216.87,216.86,7.25]
[1758600266545,3.42678057,216.87,216.86,8.71847948]
[1758600268643,3.42678057,216.87,216.86,7.25]
[1758600270049,3.42678057,216.87,216.83,7.25]
[1758600270236,3.42678057,216.86,216.83,7.25]
[1758600270444,3.42678057,216.85,216.83,7.25]
[1758600270641,3.42678057,216.84,216.83,7.25]
[1758600271647,3.42678057,216.88,216.83,7.25]
[1758600271948,3.42678057,216.87,216.83,7.25]
[1758600272135,3.42678057,216.86,216.83,7.25]
[1758600272339,3.42678057,216.85,216.83,7.25]
[1758600272643,1.46847948,216.89,216.83,7.25]
[1758600272844,9.31302973,216.93,216.8,22.84]
[1758600272845,3.43479813,216.88,216.82,7.7]
[1758600273043,3.43479813,216.87,216.82,1.46847948]
[1758600273239,1.46847948,216.91,216.82,1.46847948]
[1758600273441,3.43374504,216.9,216.83,7.7]
[1758600273649,3.43374504,216.89,216.83,7.7]
[1758600273837,3.43374504,216.88,216.82,1.46847948]
[1758600274150,1.46847948,216.92,216.84,9.16847948]
[1758600274344,3.43337958,216.91,216.84,9.16847948]
[1758600274541,3.43337958,216.9,216.84,9.16847948]
[1758600274740,1.46847948,216.92,216.85,4.1465]
[1758600274946,3.43297134,216.91,216.85,4.1465]
[1758600275249,1.46847948,216.93,216.85,4.1465]
[1758600275445,3.43274948,216.92,216.85,11.8465]
[1758600275657,3.43274948,216.91,216.85,11.8465]
[1758600275856,1.46847948,216.93,216.85,11.8465]
[1758600276057,3.43274948,216.92,216.85,11.8465]
[1758600276243,3.43274948,216.91,216.85,11.8465]
[1758600276443,1.46847948,216.93,216.85,11.8465]
[1758600276645,3.43263239,216.92,216.85,11.8465]
[1758600276948,3.43263239,216.91,216.85,11.8465]
[1758600277147,1.46847948,216.93,216.85,11.8465]
[1758600277946,0.71800386,217.0,216.83,64.5061]
[1758600278148,1.46847948,216.97,216.88,7.7]
[1758600278346,3.43222405,216.96,216.88,9.16847948]
[1758600278647,1.46847948,216.99,216.91,7.7]
[1758600278846,3.43221524,216.98,216.91,7.7]
[1758600279050,1.46847948,216.99,216.91,7.7]
[1758600279254,3.43234174,216.98,216.91,7.7]
[1758600279446,1.46847948,216.99,216.91,7.7]
[1758600279646,1.46847948,216.97,216.91,7.7]
[1758600283752,1.46847948,216.99,216.91,7.7]
[1758600283958,3.43877001,216.98,216.91,7.7]
[1758600284158,1.46847948,216.99,216.91,7.7]
[1758600284458,3.43876925,216.98,216.91,7.7]
[1758600284652,1.46847948,216.99,216.91,7.7]
[1758600284852,3.44040314,216.98,216.91,7.7]
[1758600285052,1.46847948,216.99,216.91,7.7]
[1758600285253,3.44040314,216.98,216.91,7.7]
[1758600285454,1.46847948,216.99,216.91,7.7]
[1758600285653,3.44073931,216.98,216.91,7.7]
[1758600285856,1.46847948,216.99,216.91,7.7]
[1758600286055,3.44073931,216.98,216.91,7.7]
[1758600286259,1.46847948,216.99,216.91,7.7]
[1758600286454,3.44242789,216.98,216.91,7.7]
[1758600286659,1.46847948,216.99,216.91,7.7]
[1758600286865,3.44242866,216.98,216.91,7.7]
[1758600287062,1.46847948,216.99,216.91,7.7]
[1758600287253,3.44243076,216.98,216.91,7.7]
[1758600287454,3.44243076,216.97,216.91,7.7]
[1758600287655,1.46847948,216.99,216.91,7.7]
[1758600287855,3.44431254,216.98,216.91,7.7]
[1758600288056,3.44431254,216.97,216.91,7.7]
[1758600288258,1.46847948,216.99,216.91,7.7]
[1758600288457,3.44560348,216.98,216.91,7.7]
[1758600288663,3.44560348,216.97,216.91,7.7]
[1758600288956,133.17374511,217.07,216.9,4.1455]
[1758600288957,1.46847948,217.04,216.94,1.46847948]
[1758600289162,3.4449908,217.03,216.95,7.7]
[1758600289469,3.4449908,217.02,216.97,7.7]
[1758600289656,3.4449908,217.01,216.97,7.7]
[1758600289965,1.46847948,217.07,216.99,7.7]
[1758600290164,1.46847948,217.07,216.99,11.8438]
[1758600290165,3.44515004,217.06,216.99,11.8438]
[1758600290365,3.44515004,217.05,216.99,11.8438]
[1758600290566,3.44515004,217.04,216.99,7.7]
[1758600290768,1.46847948,217.09,216.99,7.7]
[1758600290964,3.44546764,217.08,216.99,7.7]
[1758600291166,3.44546764,217.07,216.99,7.7]
[1758600291363,3.44546764,217.06,216.99,7.7]
[1758600291566,3.44546764,217.05,216.99,7.7]
[1758600291762,3.44546764,217.04,216.98,7.7]
[1758600292063,1.46847948,217.07,217.0,7.7]
[1758600292264,3.44576418,217.06,217.0,7.7]
[1758600292455,3.44576418,217.05,217.0,7.7]
[1758600292653,3.44576418,217.04,217.0,7.7]
[1758600292855,1.46847948,217.08,217.0,7.7]
[1758600293055,3.44609298,217.07,217.0,7.7]
[1758600293256,3.44609298,217.06,217.02,7.7]
[1758600293458,5.16802973,217.13,217.02,7.7]
[1758600293459,1.46847948,217.11,217.02,7.7]
[1758600293659,3.44552168,217.1,217.02,7.7]
[1758600293859,3.44552168,217.09,217.04,7.7]
[1758600294066,3.44552168,217.08,217.04,7.7]
[1758600294263,1.46847948,217.13,217.04,7.7]
[1758600294457,3.44420828,217.12,217.04,7.7]
[1758600294660,3.44420828,217.11,217.04,7.7]
[1758600294961,3.44420828,217.1,217.04,7.7]
[1758600295156,3.44420828,217.09,217.03,5.61147948]
[1758600295467,1.46847948,217.13,217.04,7.7]
[1758600295668,3.44306854,217.12,217.04,7.7]
[1758600295869,3.44306854,217.11,217.04,7.7]
[1758600296074,1.46847948,217.13,217.04,7.7]
[1758600296075,3.44306854,217.1,217.04,7.7]
[1758600296263,1.46847948,217.13,217.04,7.7]
[1758600296563,3.44202139,217.12,217.04,7.7]
[1758600296765,1.46847948,217.07,216.97,116.82]
[1758600297066,3.44202139,217.06,216.99,7.7]
[1758600297261,1.46847948,217.09,217.0,9.16847948]
[1758600297471,1.46847948,217.11,217.03,7.7]
[1758600297772,3.44174328,217.1,217.04,1.46847948]
[1758600297961,1.46847948,217.13,217.05,7.7]
[1758600298268,3.44173735,217.12,217.05,7.7]
[1758600298467,3.44173735,217.11,217.05,7.7]
[1758600298670,3.44173735,217.1,217.06,7.7]
[1758600298871,3.44056275,217.09,217.02,7.7]
[1758600299068,3.4406395,217.08,217.02,7.7]
[1758600299270,1.46847948,217.09,217.02,7.7]
[1758600299770,3.42301214,217.08,217.02,7.7]
[1758600299968,1.46847948,217.09,217.02,7.7]
[1758600300273,3.42301291,217.08,217.02,7.7]
[1758600300470,1.46847948,217.09,217.02,7.7]
[1758600300773,1.46847948,217.07,217.02,7.7]
[1758600301166,1.46847948,217.07,217.0,116.94]
[1758600301362,1.46847948,217.07,216.99,116.86]
[1758600301566,1.46847948,217.07,217.0,7.37]
[1758600302478,1.46847948,217.05,216.96,60.9344]
[1758600303170,1.46847948,217.05,216.96,55.03287948]
[1758600303375,1.46847948,217.09,217.0,1.46847948]
[1758600303568,3.42170165,217.08,217.01,7.37]
[1758600303874,1.46847948,217.09,217.01,7.37]
[1758600304073,3.42166592,217.08,217.01,7.37]
[1758600304272,1.46847948,217.09,217.01,7.37]
[1758600304475,3.42121178,217.08,217.01,7.37]
[1758600304663,1.46847948,217.09,217.01,7.37]
[1758600304966,1.46847948,217.11,217.03,7.37]
[1758600305166,3.42117034,217.1,217.03,7.37]
[1758600305365,1.46847948,217.11,217.03,7.37]
[1758600305576,3.42046177,217.1,217.03,7.37]
[1758600305775,1.46847948,217.12,217.03,7.37]
[1758600306086,1.46847948,217.1,217.03,7.37]
[1758600306373,348.4,217.17,217.03,7.37]
[1758600306573,1.46847948,217.12,217.05,7.37]
[1758600308373,1.46847948,217.15,217.07,1.46847948]
[1758600308573,3.41836606,217.14,217.08,7.37]
[1758600308776,1.46847948,217.15,217.08,7.37]
[1758600308988,3.4181139,217.14,217.08,7.37]
[1758600309165,1.46847948,217.15,217.08,7.37]
[1758600309373,3.41748009,217.14,217.1,4.1417]
[1758600309565,1.46847948,217.19,217.11,7.37]
[1758600309764,3.41683629,217.18,217.11,7.37]
[1758600310071,3.41683629,217.17,217.11,7.37]
[1758600310379,1.46847948,217.15,217.07,116.82]
[1758600310768,1.46847948,217.15,217.08,7.37]
[1758600311471,3.41560943,217.14,217.08,7.37]
[1758600311677,1.46847948,217.15,217.08,7.37]
[1758600311872,3.41560943,217.14,217.08,7.37]
[1758600312076,1.46847948,217.15,217.08,7.37]
[1758600314474,1.46847948,217.17,217.08,7.37]
[1758600314674,3.41458229,217.16,217.08,7.37]
[1758600314876,3.41458229,217.15,217.08,7.37]
[1758600315175,1.46847948,217.17,217.08,7.37]
[1758600315383,3.41469735,217.16,217.08,7.37]
[1758600315580,3.41469735,217.15,217.09,5.61037948]
[1758600315777,5.60867948,217.19,217.1,7.3]
[1758600315976,3.41453424,217.18,217.1,7.3]
[1758600316181,3.41453424,217.17,217.1,7.3]
[1758600316479,3.41453424,217.16,217.1,7.3]
[1758600316678,5.60867948,217.19,217.1,7.3]
[1758600316882,3.4151163,217.18,217.1,7.3]
[1758600317079,3.4151163,217.17,217.1,7.3]
[1758600317277,3.4151163,217.16,217.1,7.3]
[1758600317474,3.4151163,217.15,217.09,5.61037948]
[1758600317781,5.60867948,217.19,217.1,7.3]
[1758600318083,4.88440004,217.18,217.1,7.3]
[1758600318284,3.41592056,217.17,217.1,7.3]
[1758600318583,3.41592056,217.16,217.1,7.3]
[1758600318771,3.41592056,217.15,217.09,5.61037948]
[1758600318975,1.46847948,217.18,217.1,7.3]
[1758600319177,3.41656908,217.17,217.1,7.3]
[1758600319378,3.41656908,217.16,217.1,7.3]
[1758600319578,1.46847948,217.18,217.1,7.3]
[1758600319784,3.41660805,217.17,217.1,7.3]
[1758600319987,3.41660805,217.16,217.1,7.3]
[1758600320186,1.46847948,217.18,217.1,7.3]
[1758600320382,3.41709556,217.17,217.1,7.3]
[1758600320581,3.41709556,217.16,217.1,7.3]
[1758600320777,1.46847948,217.18,217.1,7.3]
[1758600320987,3.41709556,217.17,217.14,7.3]
[1758600321189,2.13041585,217.23,217.14,7.3]
[1758600321382,3.41643091,217.22,217.14,7.3]
[1758600321684,3.41643091,217.21,217.14,7.3]
[1758600321884,3.41643091,217.2,217.14,7.3]
[1758600322072,2.13041585,217.23,217.14,7.3]
[1758600322273,1.46847948,217.17,217.05,62.0]
[1758600322584,1.46847948,217.15,217.06,78.10847948]
[1758600323082,3.41759793,217.14,217.06,82.25077948]
[1758600323386,3.41759793,217.13,217.06,82.25077948]
[1758600323590,1.46847948,217.15,217.06,82.25077948]
[1758600323784,3.4185117,217.14,217.06,74.95077948]
[1758600324085,3.4185117,217.13,217.07,7.3]
[1758600324284,1.46847948,217.15,217.07,7.3]
[1758600324484,3.41904358,217.14,217.07,7.3]
[1758600324685,3.41904358,217.13,217.07,7.3]
[1758600324986,1.46847948,217.15,217.07,7.3]
[1758600325187,3.41904358,217.14,217.07,7.3]
[1758600325383,3.41904358,217.13,217.07,7.3]
[1758600325585,1.46847948,217.15,217.07,7.3]
[1758600325787,3.41974268,217.14,217.07,7.3]
[1758600325984,3.41974268,217.13,217.07,7.3]
[1758600326186,1.46847948,217.15,217.07,7.3]
[1758600326389,3.42047347,217.14,217.07,7.3]
[1758600326691,3.42047347,217.13,217.07,7.3]
[1758600326880,1.46847948,217.15,217.07,7.3]
[1758600327084,3.42047347,217.14,217.07,7.3]
[1758600327385,3.42047347,217.13,217.07,7.3]
[1758600327579,3.42047347,217.12,217.06,74.95077948]
[1758600327785,1.46847948,217.15,217.07,7.3]
[1758600327985,3.4214066,217.14,217.07,7.3]
[1758600328187,3.4214066,217.13,217.07,7.3]
[1758600328490,1.46847948,217.15,217.06,74.95077948]
[1758600328491,3.4214066,217.12,217.06,74.95077948]
[1758600328687,4.1406,217.16,217.07,7.3]
[1758600328989,3.4224734,217.15,217.07,7.3]
[1758600329190,3.4224734,217.14,217.07,7.3]
[1758600329385,3.4224734,217.13,217.07,7.3]
[1758600329579,3.4224734,217.12,217.07,7.3]
[1758600329780,4.1406,217.16,217.07,7.3]
[1758600329991,3.42374203,217.15,217.07,7.3]
[1758600330292,3.42374203,217.14,217.07,7.3]
[1758600330598,3.42374203,217.13,217.07,7.3]
[1758600330790,5.16802973,217.2,217.08,4.142]
[1758600330791,3.42374203,217.12,217.08,4.142]
[1758600330989,7.45822992,217.2,217.09,7.4]
[1758600331193,7.15217453,217.19,217.09,7.4]
[1758600331389,7.15217453,217.18,217.09,7.4]
[1758600331589,7.15217453,217.17,217.09,7.4]
[1758600331787,3.4250644,217.16,217.09,7.4]
[1758600331991,3.4250644,217.15,217.09,7.4]
[1758600332190,3.4250644,217.14,217.08,4.142]
[1758600332396,3.4250644,217.13,217.09,7.4]
[1758600332694,3.4250644,217.12,217.09,7.4]
[1758600332890,4.14,217.19,217.09,7.4]
[1758600333088,3.42815693,217.18,217.07,71.8357]
[1758600333289,7.16057545,217.17,217.08,7.4]
[1758600333597,7.16057545,217.16,217.08,7.4]
[1758600333796,7.16057545,217.15,217.08,7.4]
[1758600333994,3.42815693,217.14,217.08,7.4]
[1758600334192,3.42815693,217.13,217.03,7.4]
[1758600334495,7.1633563,217.12,217.03,7.4]
[1758600334692,3.42815693,217.11,217.03,7.4]
[1758600334897,3.42815693,217.1,217.03,7.4]
[1758600335995,6.43130019,217.14,217.03,7.4]
[1758600335996,3.42815693,217.09,217.03,7.4]
[1758600336194,3.42815693,217.08,217.02,7.4]
[1758600336397,6.43130019,217.14,217.02,7.4]
[1758600336596,7.16991647,217.13,217.02,7.4]
[1758600336895,7.16991647,217.12,217.02,7.4]
[1758600337092,4.1411,217.14,217.02,7.4]
[1758600337093,3.43357089,217.11,217.02,7.4]
[1758600337398,3.43357089,217.1,217.02,7.4]
[1758600337598,3.43357089,217.09,217.02,7.4]
[1758600337893,3.43357089,217.08,217.05,4.1426]
[1758600338098,6.43080019,217.17,217.06,7.4]
[1758600338396,7.16998412,217.16,217.06,7.4]
[1758600338698,7.16998412,217.15,217.06,7.4]
[1758600338899,7.16998412,217.14,217.06,7.4]
[1758600339099,3.43360207,217.13,217.06,7.4]
[1758600339299,3.43360207,217.12,217.06,7.4]
[1758600339501,3.43360207,217.11,217.05,4.1426]
[1758600339695,3.43360207,217.1,217.06,7.4]
[1758600339901,2.29020019,217.17,217.06,7.4]
[1758600340203,7.17100911,217.16,217.06,7.4]
[1758600340501,7.17100911,217.15,217.06,7.4]
[1758600340799,4.1408,217.16,217.06,7.4]
[1758600340800,7.17100911,217.14,217.06,7.4]
[1758600341100,7.17100911,217.13,217.06,7.4]
[1758600341298,3.43409417,217.12,217.06,7.4]
[1758600341501,3.43409417,217.11,217.02,7.4]
[1758600341699,3.43409417,217.1,217.02,7.4]
[1758600341894,3.43409417,217.09,217.05,7.4]
[1758600342095,4.1408,217.16,217.02,7.4]
[1758600342295,7.17185271,217.15,217.07,4.1423]
[1758600342503,7.17185271,217.14,217.08,7.4]
[1758600342697,3.43458658,217.13,217.07,4.1423]
[1758600343000,3.43458658,217.12,217.08,7.4]
[1758600343196,3.43458658,217.11,217.08,7.4]
[1758600343395,3.43458658,217.1,217.07,4.1423]
[1758600343595,4.1408,217.16,217.07,7.4]
[1758600343796,4.141,217.14,217.07,7.4]
[1758600343997,7.17285428,217.13,217.07,7.4]
[1758600344198,7.17285428,217.12,217.07,7.4]
[1758600344400,3.43497363,217.11,217.07,7.4]
[1758600344702,3.43497363,217.1,217.07,7.4]
[1758600344904,3.43497363,217.09,217.07,7.4]
[1758600345105,3.43497363,217.08,217.07,7.4]
[1758600345304,3.43497363,217.13,217.07,7.4]
[1758600345506,7.1736505,217.12,217.07,7.4]
[1758600345703,3.43497363,217.11,217.04,4.1427]
[1758600345904,3.43497363,217.1,217.04,4.1427]
[1758600346208,3.43497363,217.1,217.04,7.4]
[1758600346209,3.43497363,217.09,217.04,7.4]
[1758600347603,2.29020019,217.14,217.0,359.7636]
[1758600347604,11.31743089,217.08,217.0,359.7636]
[1758600347813,3.43497363,217.07,217.0,355.62]
[1758600348008,3.43497363,217.06,217.0,355.62]
[1758600348309,3.43497363,217.05,217.0,355.62]
[1758600348506,3.43497363,217.04,217.0,7.4]
[1758600348709,66.72430019,217.08,216.95,68.36]
[1758600348710,3.43497363,217.03,216.95,68.36]
[1758600349006,3.43497363,217.02,216.95,68.36]
[1758600349203,3.43497363,217.01,216.93,7.4]
[1758600349408,3.43497363,217.0,216.93,7.4]
[1758600349606,3.43497363,216.99,216.93,7.4]
[1758600349809,3.43497363,216.98,216.92,116.7]
[1758600350002,3.43497363,216.97,216.93,7.4]
[1758600350208,64.4458,217.04,216.93,7.4]
[1758600350405,7.17296113,217.03,216.93,7.4]
[1758600350609,4.1435,217.01,216.93,7.4]
[1758600350907,3.43503015,217.0,216.93,7.4]
[1758600351110,3.43503015,216.99,216.93,7.4]
[1758600351309,3.43503015,216.98,216.93,7.4]
[1758600351510,4.1435,217.01,216.93,7.4]
[1758600351711,3.43305929,217.0,216.93,7.4]
[1758600351909,3.43305929,216.99,216.93,7.4]
[1758600352109,3.43305929,216.98,216.93,7.4]
[1758600352308,4.1435,217.01,216.92,116.7]
[1758600352510,3.43111569,217.0,216.92,116.7]
[1758600352708,3.43111569,216.99,216.93,7.4]
[1758600352909,3.43111569,216.98,216.92,124.1]
[1758600353208,2.29020019,217.01,216.92,120.8451]
[1758600353407,3.42916679,217.0,216.92,120.8451]
[1758600353609,3.42916679,216.99,216.92,120.8451]
[1758600353807,3.42916679,216.98,216.92,120.8451]
[1758600354012,2.29020019,217.01,216.92,120.8451]
[1758600354318,3.42916679,217.0,216.92,4.1451]
[1758600354522,3.42916679,216.99,216.92,4.1451]
[1758600354814,3.42916679,216.98,216.91,7.4]
[1758600355020,2.29020019,217.01,216.91,7.4]
[1758600355206,3.42733684,217.0,216.91,7.4]
[1758600355409,3.42733684,216.99,216.91,11.5453]
[1758600355621,2.29020019,217.01,216.91,11.5453]
[1758600355816,3.42586457,217.0,216.91,7.4]
[1758600356020,3.42586457,216.99,216.91,7.4]
[1758600356316,2.29020019,217.01,216.91,7.4]
[1758600356511,3.42443168,217.0,216.91,7.4]
[1758600356711,3.42443168,216.99,216.91,7.4]
[1758600356911,2.29020019,217.01,216.91,7.4]
[1758600357109,3.42443168,217.0,216.91,7.4]
[1758600357315,3.42443168,216.99,216.91,7.4]
[1758600357512,2.29020019,217.01,216.91,7.4]
[1758600357712,3.42314812,217.0,216.91,7.4]
[1758600357914,3.42314812,216.99,216.91,7.4]
[1758600358115,2.29020019,217.01,216.91,7.4]
[1758600358318,2.29020019,216.98,216.91,7.4]
[1758600358506,2.29020019,216.98,216.87,352.3059]
[1758600358507,2.29020019,216.98,216.88,124.12]
[1758600359010,2.29020019,216.98,216.9,7.4]
[1758600360005,4.1435,217.01,216.9,7.4]
[1758600360006,6.43370019,217.01,216.9,7.4]
[1758600360213,4.1439,216.99,216.9,7.4]
[1758600360409,3.43246959,216.98,216.9,7.4]
[1758600360609,4.1439,216.99,216.9,7.4]
[1758600360818,3.4323538,216.98,216.9,7.4]
[1758600361115,4.1439,216.99,216.9,7.4]
[1758600361312,3.43217253,216.98,216.9,7.4]
[1758600361517,4.1442,216.97,216.9,7.4]
[1758600362516,66.76360019,216.95,216.86,7.32]
[1758600362724,3.43043276,216.94,216.86,7.32]
[1758600362911,4.1455,216.91,216.82,83.3]
[1758600363213,64.4605,216.99,216.83,7.32]
[1758600363419,2.29020019,216.97,216.83,7.32]
[1758600363717,3.42911744,216.96,216.83,7.32]
[1758600363916,3.42911744,216.95,216.83,7.32]
[1758600364118,3.42911744,216.94,216.83,7.32]
[1758600364318,3.42911744,216.93,216.83,7.32]
[1758600364520,2.29020019,216.97,216.83,7.32]
[1758600364720,3.42732685,216.96,216.83,7.32]
[1758600364920,7.57212685,216.95,216.84,7.32]
[1758600365120,3.42732685,216.94,216.84,7.32]
[1758600365714,4.1452,216.92,216.84,7.32]
[1758600365910,66.76650019,216.94,216.84,7.32]
[1758600366116,3.42638366,216.93,216.84,7.32]
[1758600366419,2.29020019,216.97,216.85,7.32]
[1758600366614,3.42528223,216.96,216.85,7.32]